bitfinex-derivatives/quotes_ETHF0:USTF0_20250316
["timestamp","ask_amount","ask_price","bid_price","bid_amount"]
[1742100246574,4.6219,1927.1,1927.0,1.03786]
[1742100247781,6.0605,1927.1,1927.0,1.03786]
[1742100247975,6.0605,1927.1,1927.0,1.72486]
[1742100248175,4.6464,1927.1,1927.0,1.72486]
[1742100248376,1.4386,1927.1,1927.0,1.72486]
[1742100251376,1.37160001,1927.2,1927.1,1.0378]
[1742100251684,1.37160001,1927.2,1927.1,3.1168]
[1742100255989,2.40935001,1927.2,1927.1,3.1168]
[1742100256187,1.37160001,1927.2,1927.1,3.1168]
[1742100258587,2.40935001,1927.2,1927.1,2.079]
[1742100259486,2.40935001,1927.2,1927.1,3.1168]
[1742100259678,2.40935001,1927.2,1927.1,2.079]
[1742100259878,1.37160001,1927.2,1927.1,3.1168]
[1742100261790,2.40935001,1927.2,1927.1,2.079]
[1742100262784,2.40935001,1927.2,1927.1,3.1168]
[1742100264183,2.40935001,1927.2,1927.1,2.079]
[1742100264486,1.37160001,1927.2,1927.1,3.1168]
[1742100264683,1e-08,1927.2,1927.1,3.1168]
[1742100265491,1.44720001,1927.2,1927.1,3.1168]
[1742100265687,1e-08,1927.2,1927.1,3.1168]
[1742100267185,1.44700001,1927.2,1927.1,3.1168]
[1742100267591,2.17260001,1927.2,1927.1,3.1168]
[1742100268184,3.21035001,1927.2,1927.1,1.4196]
[1742100268792,2.17260001,1927.2,1927.1,2.4574]
[1742100268985,3.21035001,1927.2,1927.1,2.4574]
[1742100269185,2.17260001,1927.2,1927.1,2.4574]
[1742100270094,3.21035001,1927.2,1927.1,2.4574]
[1742100270888,2.17260001,1927.2,1927.1,2.4574]
[1742100273597,1.44700001,1927.2,1927.1,2.4574]
[1742100274096,1e-08,1927.2,1927.1,3.03411076]
[1742100274296,1e-08,1927.2,1927.1,3.74211076]
[1742100276490,1e-08,1927.2,1927.1,6.94991076]
[1742100277497,1e-08,1927.2,1927.1,6.94985952]
[1742100277697,1e-08,1927.2,1927.1,6.3732]
[1742100279695,1.41230001,1927.2,1927.1,6.3732]
[1742100279896,2.11080001,1927.2,1927.1,6.3732]
[1742100280299,3.14855001,1927.2,1927.1,5.3354]
[1742100280700,3.14855001,1927.2,1927.1,4.6274]
[1742100281000,2.11080001,1927.2,1927.1,2.4574]
[1742100282102,2.11080001,1927.2,1927.1,3.1778]
[1742100283504,1.41230001,1927.2,1927.1,3.1778]
[1742100285097,2.09260001,1927.2,1927.1,3.1778]
[1742100288807,1.41230001,1927.2,1927.1,3.1778]
[1742100289197,1e-08,1927.2,1927.1,3.1778]
[1742100290811,1.38110001,1927.2,1927.1,3.1778]
[1742100293405,1e-08,1927.2,1927.1,3.1778]
[1742100293902,1e-08,1927.2,1927.1,3.75461279]
[1742100294213,1e-08,1927.2,1927.1,3.75461222]
[1742100296210,1e-08,1927.2,1927.1,3.75464403]
[1742100297911,1e-08,1927.2,1927.1,3.1778]
[1742100304813,1e-08,1927.2,1927.1,6.3856]
[1742100305006,1e-08,1927.2,1927.1,6.96245976]
[1742100307511,1e-08,1927.2,1927.1,6.9619959]
[1742100311417,1e-08,1927.2,1927.1,6.3856]
[1742100311627,1e-08,1927.2,1927.1,6.9616275]
[1742100313413,1e-08,1927.2,1927.1,6.3856]
[1742100313716,1e-08,1927.2,1927.1,6.96147671]
[1742100315115,1e-08,1927.2,1927.1,9.46147671]
[1742100315315,1.3364,1927.6,1927.5,1.03759]
[1742100315620,1.00952396,1927.8,1927.7,1.03748]
[1742100315811,0.7185,1927.8,1927.7,1.03748]
[1742100317011,2.074,1927.8,1927.7,2.47288]
[1742100320526,2.074,1927.8,1927.7,3.19228]
[1742100321424,2.074,1927.8,1927.7,2.47288]
[1742100323417,2.074,1927.8,1927.7,3.19228]
[1742100325121,2.074,1927.8,1927.7,2.47288]
[1742100326924,2.074,1927.8,1927.7,3.83178]
[1742100327329,1.3555,1927.8,1927.7,3.83178]
[1742100327528,0.00777746,1927.9,1927.8,1.03743]
[1742100327829,0.00777746,1927.9,1927.8,2.38553]
[1742100328229,1.44437746,1927.9,1927.8,2.38553]
[1742100329123,1.44437746,1927.9,1927.8,5.59333]
[1742100329829,0.00518495,1927.9,1927.8,5.59333]
[1742100330332,0.00518495,1927.9,1927.8,6.16833267]
[1742100331534,0.00518495,1927.9,1927.8,6.16817296]
[1742100331733,0.00518495,1927.9,1927.8,5.59333]
[1742100332833,0.70918495,1927.9,1927.8,5.59333]
[1742100333031,2.02728495,1927.9,1927.8,5.59333]
[1742100334921,1.32328495,1927.9,1927.8,5.59333]
[1742100335132,1.32328495,1927.9,1927.8,6.16846282]
[1742100335437,1.32328495,1927.9,1927.8,6.16843066]
[1742100335729,0.00518495,1927.9,1927.8,6.16843066]
[1742100336727,1.43048495,1927.9,1927.8,6.16843066]
[1742100337533,1.43048495,1927.9,1927.8,6.16839241]
[1742100338726,1.43048495,1927.9,1927.8,6.16839493]
[1742100344744,1.43048495,1927.9,1927.8,6.16885606]
[1742100345036,1.43048495,1927.9,1927.8,6.16885855]
[1742100345434,1.43048495,1927.9,1927.8,5.59333]
[1742100345636,0.00518495,1927.9,1927.8,5.59333]
[1742100347041,0.00518495,1927.9,1927.8,6.16893302]
[1742100347339,1.40658495,1927.9,1927.8,6.16893302]
[1742100347742,1.40658495,1927.9,1927.8,6.16898131]
[1742100349737,1.40658495,1927.9,1927.8,5.59333]
[1742100349942,1.40658495,1927.9,1927.8,6.16913875]
[1742100354264,1.40658495,1927.9,1927.8,2.96133875]
[1742100354464,1.40658495,1927.9,1927.8,6.16913875]
[1742100361970,2.13378495,1927.9,1927.8,6.16913875]
[1742100362474,2.13378495,1927.9,1927.8,6.17015055]
[1742100362671,2.13378495,1927.9,1927.8,1.61425055]
[1742100363266,2.13378495,1927.9,1927.8,1.61448591]
[1742100365168,2.13378495,1927.9,1927.8,1.61424621]
[1742100368276,2.13378495,1927.9,1927.8,1.03743]
[1742100371481,2.13378495,1927.9,1927.8,2.48133]
[1742100377479,1.40658495,1927.9,1927.8,2.48133]
[1742100377679,1.40658495,1927.9,1927.8,3.20743]
[1742100378982,1.40658495,1927.9,1927.8,2.48133]
[1742100391684,0.00518495,1927.9,1927.8,2.48133]
[1742100394488,0.00518495,1927.9,1927.8,3.05793469]
[1742100395378,0.00518495,1927.9,1927.8,3.05753299]
[1742100397594,0.00518495,1927.9,1927.8,3.05728886]
[1742100399387,0.00518495,1927.9,1927.8,6.33828886]
[1742100399690,0.00518495,1927.9,1927.8,6.33816089]
[1742100399996,0.00518495,1927.9,1927.8,3.05716089]
[1742100401582,0.00518495,1927.9,1927.8,3.05703602]
[1742100403278,0.00518495,1927.9,1927.8,2.48133]
[1742100405292,0.70178495,1927.9,1927.8,2.48133]
[1742100407183,3.09685495,1927.9,1927.8,2.48133]
[1742100407396,2.05948495,1927.9,1927.6,3.21557746]
[1742100407589,2.05948495,1927.9,1927.7,1.03746]
[1742100407590,2.0671,1927.8,1927.7,1.03746]
[1742100407895,2.0671,1927.8,1927.7,2.46206]
[1742100411297,2.0671,1927.8,1927.7,2.46208]
[1742100411498,2.0671,1927.8,1927.7,1.4246]
[1742100411895,2.0671,1927.8,1927.7,2.46208]
[1742100414300,0.00518495,1927.9,1927.8,1.03743]
[1742100415591,0.00518495,1927.9,1927.8,2.44513]
[1742100415592,1.44748495,1927.9,1927.8,2.44513]
[1742100419904,2.48485495,1927.9,1927.8,1.4077]
[1742100420396,2.48485495,1927.9,1927.8,2.44513]
[1742100421197,1.03743,1927.8,1927.6,4.95106746]
[1742100421397,1.03748,1927.7,1927.6,4.25306746]
[1742100421798,2.42737,1927.8,1927.6,4.25306746]
[1742100422195,1.3732,1927.7,1927.6,4.25306746]
[1742100428409,1.3732,1927.7,1927.6,1.04526746]
[1742100429709,1.3732,1927.7,1927.6,2.41866746]
[1742100430311,1.03743,1927.8,1927.6,1.04526746]
[1742100430507,2.41413,1927.8,1927.6,1.73556746]
[1742100431111,1.327,1927.7,1927.6,1.73556746]
[1742100432516,2.36448,1927.7,1927.6,0.69807746]
[1742100432710,2.36448,1927.7,1927.6,0.00777746]
[1742100436725,1.327,1927.7,1927.6,1.04530746]
[1742100436920,2.36448,1927.7,1927.6,0.71767746]
[1742100437512,2.36448,1927.7,1927.6,2.05397746]
[1742100437816,2.36448,1927.7,1927.6,1.34407746]
[1742100438217,4.05465244,1927.7,1927.6,1.34407746]
[1742100440419,4.05465244,1927.7,1927.6,2.38160746]
[1742100441026,1.03753,1927.6,1927.1,5.80228]
[1742100441213,1.4404,1927.6,1927.5,1.03757]
[1742100441917,1.4404,1927.6,1927.2,1.3968]
[1742100442121,1.03767,1927.4,1927.2,2.43452]
[1742100442426,1.03767,1927.4,1927.3,1.3172]
[1742100442723,1.03767,1927.4,1927.3,2.3549]
[1742100442922,1.03767,1927.4,1927.3,1.3172]
[1742100443727,1.0377,1927.3,1927.2,0.00777746]
[1742100443915,1.0377,1927.3,1927.2,1.32247746]
[1742100445123,1.0377,1927.3,1927.2,0.00777746]
[1742100445525,1.0377,1927.3,1927.2,1.32247746]
[1742100452126,1.0377,1927.3,1927.2,2.69967746]
[1742100458224,1.7465,1927.3,1927.2,2.69967746]
[1742100460434,1.7465,1927.3,1927.2,1.32247746]
[1742100461830,3.2028,1927.3,1927.2,1.32247746]
[1742100462436,1.03787,1927.0,1926.8,3.2078]
[1742100462625,1.03787,1927.0,1926.9,0.5760647]
[1742100463027,3.8956,1927.1,1926.8,1.03793]
[1742100463325,1.03789,1927.0,1926.8,1.03793]
[1742100463524,1.03789,1927.0,1926.8,1.04570746]
[1742100465541,1.03789,1927.0,1926.9,1.3353]
[1742100466239,1.03789,1927.0,1926.9,2.37321]
[1742100466438,1.03789,1927.0,1926.9,1.3353]
[1742100469236,1.03791,1926.9,1926.8,0.00777746]
[1742100469438,8.22631,1926.9,1926.8,0.00777746]
[1742100471039,8.89351,1926.9,1926.8,0.00777746]
[1742100471744,11.39351,1926.9,1926.8,0.00777746]
[1742100472044,12.24291623,1926.9,1926.8,0.00777746]
[1742100472444,12.32735099,1926.9,1926.8,0.00777746]
[1742100472645,13.33623355,1926.9,1926.8,0.00777746]
[1742100474746,1.03823,1926.4,1925.8,16.34908098]
[1742100474948,3.2078,1926.3,1926.2,1.03827]
[1742100475146,3.2078,1926.3,1926.1,1.03831]
[1742100475147,4.24603,1926.3,1926.1,1.03831]
[1742100475345,3.2078,1926.3,1926.2,1.03829]
[1742100477648,4.5791,1926.3,1926.2,1.03829]
[1742100479552,3.29077746,1926.4,1926.3,1.03823]
[1742100479746,0.00777746,1926.4,1926.3,1.03823]
[1742100479943,1.04598746,1926.4,1926.2,1.03827]
[1742100480252,4.24603,1926.3,1926.1,0.00777746]
[1742100480548,4.24603,1926.3,1926.2,1.03829]
[1742100480549,3.2078,1926.3,1926.2,1.03829]
[1742100480747,0.00777746,1926.4,1926.1,0.00777746]
[1742100481052,0.00777746,1926.4,1926.3,1.03823]
[1742100485856,0.00777746,1926.4,1926.1,0.00777746]
[1742100486062,3.2078,1926.3,1926.2,1.03829]
[1742100486558,4.24605,1926.3,1926.1,1.04608746]
[1742100486953,4.6563,1926.3,1926.2,1.03829]
[1742100487350,5.69453,1926.3,1926.1,1.04607746]
[1742100487546,1.4485,1926.2,1926.1,1.04607746]
[1742100488362,1.4485,1926.2,1926.1,1.72137746]
[1742100488860,3.2078,1926.3,1926.2,1.03829]
[1742100489062,4.5532,1926.3,1926.2,1.03829]
[1742100489957,5.59143,1926.3,1926.1,1.72137746]
[1742100490163,1.3454,1926.2,1926.1,1.72137746]
[1742100490358,2.0158,1926.2,1926.1,1.72137746]
[1742100490656,2.0158,1926.2,1926.1,1.04607746]
[1742100490863,3.05409,1926.2,1926.1,0.00777746]
[1742100491363,3.74159,1926.2,1926.1,0.00777746]
[1742100495966,2.7033,1926.2,1926.1,1.04611746]
[1742100496167,1.3454,1926.2,1926.1,1.04611746]
[1742100496663,6.4908,1926.3,1926.2,1.03829]
[1742100496960,7.8617,1926.3,1926.2,2.43729]
[1742100497554,7.8617,1926.3,1926.2,3.87979]
[1742100498351,6.4908,1926.3,1926.2,3.87979]
[1742100498556,7.8861,1926.3,1926.2,3.87979]
[1742100501061,7.8861,1926.3,1926.2,2.8415]
[1742100501262,7.8861,1926.3,1926.2,3.87979]
[1742100502165,3.2078,1926.3,1926.2,3.87979]
[1742100506074,5.62363,1926.3,1926.2,1.4425]
[1742100506964,5.62363,1926.3,1926.2,2.48079]
[1742100507265,4.5854,1926.3,1926.2,2.48079]
[1742100508369,4.5854,1926.3,1926.2,3.85519]
[1742100510167,3.2078,1926.3,1926.2,3.85519]
[1742100510973,0.00777746,1926.4,1926.3,1.03823]
[1742100511168,0.00777746,1926.4,1926.3,2.98179501]
[1742100515170,0.00777746,1926.4,1926.3,2.98160944]
[1742100515474,0.00777746,1926.4,1926.3,2.40523]
[1742100516074,1.43487746,1926.4,1926.3,2.40523]
[1742100519775,2.47305746,1926.4,1926.3,1.367]
[1742100519978,2.47305746,1926.4,1926.3,2.40523]
[1742100520278,2.47305746,1926.4,1926.3,1.367]
[1742100520878,2.47305746,1926.4,1926.2,1.03825]
[1742100521085,3.78803,1926.3,1926.2,1.386]
[1742100521378,2.7498,1926.3,1926.2,2.42429]
[1742100524269,1.3184,1926.3,1926.2,2.42429]
[1742100524674,0.00777746,1926.4,1926.3,1.03823]
[1742100524876,1.37117746,1926.4,1926.3,3.12833]
[1742100525179,0.00777746,1926.4,1926.3,3.12833]
[1742100525379,0.00777746,1926.4,1926.3,3.70457703]
[1742100527073,0.00777746,1926.4,1926.3,3.70468232]
[1742100531277,0.00777746,1926.4,1926.3,3.70471096]
[1742100532280,1.34817746,1926.4,1926.3,3.70474272]
[1742100534679,0.00777746,1926.4,1926.3,3.70474272]
[1742100535676,0.00777746,1926.4,1926.3,3.70475534]
[1742100537380,3.2078,1926.6,1926.5,1.03813]
[1742100537581,4.6511,1926.6,1926.5,1.03813]
[1742100538183,4.6511,1926.6,1926.5,1.75413]
[1742100538780,1.4433,1926.6,1926.5,1.75413]
[1742100540785,1.40427746,1926.7,1926.5,1.75413]
[1742100540786,0.00777746,1926.7,1926.6,1.03807]
[1742100540986,0.00777746,1926.7,1926.6,3.06897]
[1742100541181,0.00777746,1926.7,1926.6,3.64547156]
[1742100541574,2.34270092,1926.9,1926.8,1.03796]
[1742100541775,3.2078,1927.0,1926.9,1.03791]
[1742100541986,3.2078,1927.0,1926.9,3.78111]
[1742100543279,3.2078,1927.0,1926.9,4.35690424]
[1742100543479,3.2078,1927.0,1926.9,3.78111]
[1742100543681,3.2078,1927.0,1926.9,3.06881]
[1742100544090,1.34147746,1927.1,1927.0,1.03786]
[1742100544283,1.34147746,1927.1,1927.0,2.45306]
[1742100545191,1.34147746,1927.1,1927.0,1.03786]
[1742100548296,1.34147746,1927.1,1927.0,2.38926]
[1742100549095,1.34147746,1927.1,1927.0,3.05336]
[1742100549998,3.287,1927.5,1927.4,1.03762]
[1742100550199,4.5616,1927.5,1927.4,1.03762]
[1742100551299,1.03764,1927.4,1927.3,1.40407746]
[1742100551496,5.59921,1927.5,1927.3,2.44174746]
[1742100551993,1.03764,1927.4,1927.3,1.40407746]
[1742100552197,1.03764,1927.4,1927.3,0.00777746]
[1742100553200,1.03777,1927.2,1927.0,1.03782]
[1742100553399,2.032,1927.1,1927.0,1.03782]
[1742100553587,2.032,1927.1,1927.0,2.42672]
[1742100555090,2.032,1927.1,1927.0,1.03782]
[1742100555790,3.0698,1927.1,1926.9,5.64235746]
[1742100555995,1.4491,1927.0,1926.9,5.64235746]
[1742100556192,2.1468,1927.0,1926.9,5.64235746]
[1742100556387,2.1468,1927.0,1926.9,4.25345746]
[1742100556594,3.18466,1927.0,1926.9,1.04565746]
[1742100556793,2.1468,1927.0,1926.9,1.04565746]
[1742100559298,0.6569,1927.1,1927.0,1.03786]
[1742100559801,0.6569,1927.1,1927.0,2.35426]
[1742100560006,1.9727,1927.1,1927.0,2.35426]
[1742100564100,0.6808,1927.2,1927.1,1.0378]
[1742100564302,0.6808,1927.2,1927.1,2.3858]
[1742100566007,2.0336,1927.2,1927.1,2.3858]
[1742100570716,3.07135,1927.2,1927.1,2.3858]
[1742100571411,2.0336,1927.2,1927.1,2.3858]
[1742100573216,3.07135,1927.2,1927.1,2.3858]
[1742100573918,3.07135,1927.2,1927.1,1.348]
[1742100574123,3.07135,1927.2,1926.9,4.25345746]
[1742100574124,1.0378,1927.1,1926.9,4.25345746]
[1742100574314,0.7054,1927.0,1926.9,5.61445746]
[1742100574514,1.74326,1927.0,1926.9,0.00777746]
[1742100574723,3.16246,1927.0,1926.9,0.00777746]
[1742100577922,1.03804,1926.7,1926.5,1.03811]
[1742100578123,1.3686,1926.6,1926.5,1.03811]
[1742100578322,2.8169,1926.6,1926.5,1.03811]
[1742100578521,2.8169,1926.6,1926.4,1.03816]
[1742100578522,3.85497,1926.6,1926.4,1.03816]
[1742100578728,2.48643,1926.5,1926.4,1.03816]
[1742100579122,2.48643,1926.5,1926.3,4.25377746]
[1742100579423,1.4483,1926.4,1926.3,4.25377746]
[1742100580321,2.48648,1926.4,1926.3,4.25377746]
[1742100580628,2.48648,1926.4,1926.3,0.00777746]
[1742100587624,2.48648,1926.4,1926.3,1.39467746]
[1742100588933,5.69428,1926.4,1926.3,0.00777746]
[1742100590635,1.03829,1926.2,1926.1,1.3357]
[1742100591239,2.48229,1926.2,1926.1,1.3357]
[1742100592940,1.444,1926.2,1926.1,2.37404]
[1742100593239,1.444,1926.2,1926.1,3.76974]
[1742100594339,2.36275,1926.3,1926.1,3.76974]
[1742100594538,3.74125,1926.3,1926.2,1.3628]
[1742100606844,4.74890607,1926.3,1926.2,1.3628]
[1742100609347,7.95670607,1926.3,1926.2,1.3628]
[1742100611349,4.74890607,1926.3,1926.2,1.3628]
[1742100611646,7.95670607,1926.3,1926.2,1.3628]
[1742100611849,8.80655825,1926.3,1926.2,1.3628]
[1742100612438,1.03834,1926.1,1926.0,0.69227746]
[1742100615751,1.03834,1926.1,1926.0,2.01487746]
[1742100618451,1.03834,1926.1,1926.0,3.05327746]
[1742100618647,2.49012,1926.2,1926.0,2.01487746]
[1742100618846,2.49012,1926.2,1926.1,1.3418]
[1742100619047,1.03832,1926.2,1926.1,1.3418]
[1742100620050,6.38980825,1926.3,1926.1,1.3418]
[1742100620358,1.03823,1926.3,1926.1,2.3801]
[1742100620552,1.03823,1926.3,1926.2,0.6878]
[1742100620749,1.03832,1926.2,1926.0,1.73063746]
[1742100621056,1.03832,1926.2,1926.1,1.4553]
[1742100621457,2.45582,1926.2,1926.1,1.4553]
[1742100621658,1.03834,1926.1,1926.0,0.69227746]
[1742100621854,1.03834,1926.1,1926.0,2.14757746]
[1742100622658,1.03834,1926.1,1926.0,1.46307746]
[1742100622862,1.03834,1926.1,1926.0,2.50147746]
[1742100623047,5.71815607,1926.2,1926.0,2.50147746]
[1742100623251,6.75644607,1926.2,1926.1,1.4032]
[1742100623456,5.74879,1926.2,1926.1,1.4032]
[1742100623858,6.75644607,1926.2,1926.1,1.4032]
[1742100629968,5.01285607,1926.2,1926.1,1.4032]
[1742100630162,1.00765607,1926.2,1926.1,3.12784]
[1742100630869,4.24604,1926.3,1926.2,1.03829]
[1742100630870,3.2078,1926.3,1926.2,1.03829]
[1742100631165,3.2078,1926.3,1926.2,2.45329]
[1742100631468,4.24603,1926.3,1926.2,1.415]
[1742100631957,5.99377607,1926.4,1926.2,2.45329]
[1742100632160,1.03823,1926.3,1926.2,1.415]
[1742100632461,1.03823,1926.3,1926.1,1.72462]
[1742100633272,1.03823,1926.3,1926.1,0.6863]
[1742100633476,1.03823,1926.3,1926.1,1.72459]
[1742100633765,5.80552024,1926.4,1926.1,1.72459]
[1742100633766,6.18583024,1926.4,1926.2,1.03827]
[1742100633967,6.18583024,1926.4,1926.3,1.72483]
[1742100634175,5.14762024,1926.4,1926.3,1.72483]
[1742100634366,4.29765607,1926.4,1926.3,1.72483]
[1742100634565,5.33583607,1926.4,1926.3,0.6866]
[1742100634961,1.03818,1926.4,1926.3,0.6866]
[1742100635466,4.87895607,1926.5,1926.3,0.6866]
[1742100635672,5.25358607,1926.5,1926.3,1.7248]
[1742100635875,5.25358607,1926.5,1926.4,0.6797]
[1742100636063,4.21545607,1926.5,1926.4,1.71788]
[1742100636266,3.2078,1926.5,1926.4,1.71788]
[1742100636662,4.24593,1926.5,1926.4,1.71788]
[1742100636867,3.2078,1926.5,1926.4,1.71788]
[1742100637065,3.2078,1926.5,1926.4,0.6797]
[1742100637066,4.24593,1926.5,1926.4,0.6797]
[1742100637677,6.61468607,1926.5,1926.4,0.6797]
[1742100638271,6.61468607,1926.5,1926.3,1.72479]
[1742100638570,1.3795,1926.4,1926.3,1.72479]
[1742100641378,4.21545607,1926.5,1926.4,1.03818]
[1742100641576,3.2078,1926.5,1926.4,1.70858]
[1742100641969,4.5679,1926.5,1926.4,1.70858]
[1742100642665,1.3601,1926.5,1926.4,1.70858]
[1742100643374,2.39823,1926.5,1926.4,0.6704]
[1742100644077,1.3601,1926.5,1926.4,1.70858]
[1742100647682,1.3601,1926.5,1926.4,3.10028]
[1742100654397,2.39823,1926.5,1926.4,3.10028]
[1742100654593,2.39823,1926.5,1926.3,0.6866]
[1742100654594,1.03827,1926.3,1926.1,1.03833]
[1742100654896,3.14742,1926.4,1926.2,2.35699]
[1742100655096,1.73052,1926.4,1926.3,1.3187]
[1742100656192,1.03829,1926.2,1926.0,4.25393746]
[1742100656394,1.03827,1926.3,1926.1,2.46614]
[1742100657087,1.03827,1926.3,1926.2,1.4278]
[1742100658797,1.03829,1926.2,1926.0,4.25393746]
[1742100658996,1.03829,1926.2,1926.1,2.46614]
[1742100659193,1.03829,1926.2,1926.1,1.4278]
[1742100660500,1.03827,1926.3,1926.1,1.4278]
[1742100660706,1.03829,1926.2,1926.1,2.46614]
[1742100660896,1.03829,1926.2,1926.1,1.4278]
[1742100661400,1.03834,1926.1,1926.0,3.21557746]
[1742100661599,1.03832,1926.2,1926.0,4.25395746]
[1742100662694,1.03832,1926.2,1926.1,1.4264]
[1742100663905,2.54922002,1926.4,1926.1,2.46474]
[1742100664202,3.2078,1926.3,1926.1,2.46474]
[1742100664403,4.24603,1926.3,1926.2,1.4264]
[1742100664605,1.03823,1926.3,1926.2,1.4264]
[1742100664805,1.03823,1926.3,1926.2,2.46469]
[1742100665005,1.03823,1926.3,1926.2,1.4264]
[1742100667606,2.35333,1926.3,1926.2,1.4264]
[1742100668306,2.35333,1926.3,1926.2,2.46469]
[1742100668502,1.3151,1926.3,1926.2,2.46469]
[1742100668711,1.3151,1926.3,1926.2,3.18689]
[1742100670813,2.35333,1926.3,1926.2,3.18689]
[1742100672013,2.35333,1926.3,1926.2,1.4264]
[1742100672308,1.03834,1926.1,1926.0,0.71347746]
[1742100672506,1.03834,1926.1,1926.0,2.12977746]
[1742100672705,1.03834,1926.1,1926.0,1.42407746]
[1742100672906,3.02194,1926.1,1926.0,1.42407746]
[1742100673310,1.9836,1926.1,1926.0,2.46247746]
[1742100673511,1.3222,1926.1,1926.0,2.46247746]
[1742100673712,1.3222,1926.1,1926.0,3.15857746]
[1742100675019,1.69968,1926.3,1926.1,1.03831]
[1742100675315,1.3296,1926.2,1926.1,1.75391]
[1742100675509,1.3296,1926.3,1926.2,1.74735]
[1742100675710,6.62581607,1926.5,1926.2,0.7091]
[1742100675915,1.3296,1926.4,1926.3,1.03823]
[1742100676902,1.01543353,1926.6,1926.5,1.03813]
[1742100677106,2.34503353,1926.6,1926.5,1.03813]
[1742100677703,1.33737746,1926.6,1926.5,1.03813]
[1742100677907,2.37544746,1926.6,1926.4,1.03817]
[1742100678113,1.03819,1926.4,1926.2,0.7091]
[1742100678319,1.03819,1926.4,1926.2,1.74734]
[1742100678518,1.3414,1926.3,1926.2,1.74734]
[1742100679416,2.37963,1926.3,1926.2,0.7091]
[1742100679815,2.37963,1926.3,1926.1,0.7156]
[1742100680009,1.3414,1926.2,1926.1,2.4515]
[1742100680411,2.37969,1926.2,1926.1,0.7156]
[1742100680611,3.76799,1926.2,1926.1,0.7156]
[1742100680807,3.76799,1926.2,1926.0,1.04614746]
[1742100681016,1.3563,1926.1,1926.0,1.04614746]
[1742100682912,2.39464,1926.1,1926.0,0.00777746]
[1742100683513,1.3563,1926.1,1926.0,1.04617746]
[1742100687623,1.3563,1926.1,1926.0,2.36627746]
[1742100688815,2.39464,1926.1,1926.0,1.32787746]
[1742100689224,2.39464,1926.1,1926.0,0.00777746]
[1742100691917,2.39464,1926.1,1926.0,1.45197746]
[1742100694019,5.60244,1926.1,1926.0,0.00777746]
[1742100694831,6.61009607,1926.1,1926.0,0.00777746]
[1742100695528,1.03845,1925.9,1925.7,1.03852]
[1742100695730,1.03845,1925.9,1925.8,1.3334]
[1742100696124,0.6835,1925.9,1925.8,2.3719]
[1742100696323,1.74913,1926.0,1925.8,2.3719]
[1742100696526,1.74913,1926.0,1925.9,2.37185]
[1742100696527,0.7107,1926.0,1925.9,2.37185]
[1742100697425,0.6835,1926.1,1926.0,1.0384]
[1742100697628,1.00765607,1926.2,1926.1,1.03834]
[1742100697828,3.8913,1926.3,1926.2,1.03829]
[1742100698024,3.2078,1926.3,1926.2,1.03829]
[1742100698525,3.2078,1926.3,1926.2,1.70409]
[1742100699532,1.00802726,1926.4,1926.3,1.03823]
[1742100699833,1.00802726,1926.4,1926.3,3.13853]
[1742100700024,2.42084,1926.5,1926.3,3.13853]
[1742100700332,2.42084,1926.5,1926.4,1.4236]
[1742100700529,1.3827,1926.5,1926.4,1.4236]
[1742100700736,5.34791472,1926.6,1926.4,2.46178]
[1742100701030,1.01580472,1926.6,1926.5,1.03813]
[1742100701225,1.04584746,1926.6,1926.5,1.4236]
[1742100701629,0.00777746,1926.6,1926.5,1.4236]
[1742100701835,0.00777746,1926.6,1926.5,2.46173]
[1742100704538,4.21582726,1926.9,1926.8,1.03796]
[1742100704729,3.2078,1926.9,1926.8,1.03796]
[1742100704928,6.72215726,1927.1,1926.9,1.03789]
[1742100705229,4.21582726,1927.1,1927.0,1.03786]
[1742100705428,1.3757,1927.4,1927.0,3.2078]
[1742100705626,1.03756,1927.6,1927.4,1.03762]
[1742100705829,1.03756,1927.6,1927.5,1.3745]
[1742100706026,1.74716,1927.6,1927.5,1.3745]
[1742100706629,0.7096,1927.6,1927.5,1.3745]
[1742100707735,3.08463,1927.6,1927.5,1.3745]
[1742100708133,2.0471,1927.6,1927.5,1.3745]
[1742100708438,2.0471,1927.6,1927.5,2.41209]
[1742100709530,1.03759,1927.5,1927.3,1.03768]
[1742100709829,1.74717,1927.6,1927.4,1.4356]
[1742100710132,1.74719,1927.6,1927.4,1.4356]
[1742100710335,1.03759,1927.5,1927.4,1.4356]
[1742100710532,0.7096,1927.6,1927.1,1.4037]
[1742100710533,1.03765,1927.4,1927.1,1.4037]
[1742100710734,0.7096,1927.6,1927.2,1.4356]
[1742100710931,1.0377,1927.3,1927.1,1.4037]
[1742100711131,0.7121,1927.2,1927.1,0.7131]
[1742100711336,1.0378,1927.1,1927.0,0.00777746]
[1742100711837,1.0378,1927.1,1927.0,1.35087746]
[1742100712339,1.0378,1927.1,1927.0,0.00777746]
[1742100715040,8.92659,1927.2,1927.0,1.04562746]
[1742100715537,5.71879,1927.2,1927.1,1.3359]
[1742100716141,8.92659,1927.2,1927.1,1.3359]
[1742100716831,1.0378,1927.1,1927.0,1.34367746]
[1742100717538,1.0378,1927.1,1927.0,0.00777746]
[1742100721137,4.3418,1927.1,1927.0,0.00777746]
[1742100725048,5.62158,1927.2,1927.0,1.38547746]
[1742100725347,5.62157,1927.2,1927.0,2.42331746]
[1742100725750,5.62157,1927.2,1927.1,1.3777]
[1742100726252,4.5838,1927.2,1927.1,2.4155]
[1742100726547,3.2078,1927.2,1927.1,3.8044]
[1742100727544,1.0377,1927.3,1927.1,3.8044]
[1742100727747,1.0377,1927.3,1927.2,1.3452]
[1742100728642,1.03768,1927.4,1927.2,1.3452]
[1742100728843,1.3904,1927.3,1927.2,2.38295]
[1742100729948,1.03768,1927.4,1927.3,1.0377]
[1742100730149,1.4481,1927.4,1927.3,2.4497]
[1742100730355,3.19654,1927.5,1927.4,1.03764]
[1742100730646,3.19654,1927.5,1927.4,2.1021]
[1742100731753,2.1589,1927.5,1927.4,3.13974]
[1742100732449,1.4481,1927.5,1927.4,3.13974]